fUSD/lending_fUSD_20241015
["ID","MTS","AMOUNT","RATE_DAILY","PERIOD"]
[340298180,1729008776193,-500.0,0.00024931,7]
[340298181,1729008776202,-500.0,0.00024931,7]
[340298182,1729008776212,-500.0,0.00024931,7]
[340298183,1729008776222,-500.0,0.00024931,7]
[340298184,1729008776231,-151.0,0.00024931,7]
[340298185,1729008776241,-518.01,0.00024931,7]
[340298186,1729008776250,-917.02,0.00024931,7]
[340298187,1729008776259,-500.0,0.00024931,7]
[340298188,1729008776269,-500.0,0.00024931,7]
[340298189,1729008776279,-500.0,0.00024931,7]
[340298190,1729008776288,-564.80213286,0.00024931,7]
[340298191,1729008776298,-500.0,0.00024931,7]
[340298192,1729008776307,-500.0,0.00024931,7]
[340298193,1729008776318,-151.0,0.00024931,7]
[340298194,1729008776327,-500.0,0.00024931,7]
[340298195,1729008776337,-917.02,0.00024931,7]
[340298196,1729008776347,-518.01,0.00024931,7]
[340298197,1729008776356,-500.0,0.00024931,7]
[340298198,1729008776366,-500.0,0.00024931,7]
[340298199,1729008776376,-500.0,0.00024931,7]
[340298200,1729008776386,-500.0,0.00024931,7]
[340298201,1729008776396,-500.0,0.00024931,7]
[340298202,1729008776406,-500.0,0.00024931,7]
[340298203,1729008776421,-518.01,0.00024931,7]
[340298204,1729008776431,-500.0,0.00024931,7]
[340298205,1729008776445,-917.02,0.00024931,7]
[340298206,1729008776455,-500.0,0.00024931,7]
[340298207,1729008776465,-505.99069534,0.00024931,7]
[340298208,1729008776475,-500.0,0.00024931,7]
[340298209,1729008776485,-500.0,0.00024931,7]
[340298210,1729008776495,-500.0,0.00024931,7]
[340298211,1729008776505,-518.01,0.00024931,7]
[340298212,1729008776515,-432.92784055,0.00024931,7]
[340298213,1729008776524,-917.02,0.00024931,7]
[340298214,1729008776534,-500.0,0.00024931,7]
[340298215,1729008776544,-500.0,0.00024931,7]
[340298216,1729008776553,-518.01,0.00024931,7]
[340298217,1729008776563,-500.0,0.00024931,7]
[340298218,1729008776574,-297.434898,0.00024931,7]
[340298219,1729008776584,-500.0,0.00024931,7]
[340298220,1729008776594,-500.0,0.00024931,7]
[340298221,1729008776604,-500.0,0.00024931,7]
[340298222,1729008776614,-917.02,0.00024931,7]
[340298223,1729008776624,-500.0,0.00024931,7]
[340298224,1729008776634,-500.0,0.00024931,7]
[340298225,1729008776643,-500.0,0.00024931,7]
[340298226,1729008776653,-500.0,0.00024931,7]
[340298227,1729008776667,-518.01,0.00024931,7]
[340298228,1729008776676,-500.0,0.00024931,7]
[340298229,1729008776686,-502.91014987,0.00024931,7]
[340298230,1729008776695,-500.0,0.00024931,7]
[340298231,1729008776705,-917.02,0.00024931,7]
[340298232,1729008776714,-500.0,0.00024931,7]
[340298233,1729008776724,-591.10627803,0.00024931,7]
[340298234,1729008776733,-500.0,0.00024931,7]
[340298235,1729008776743,-500.0,0.00024931,7]
[340298236,1729008776753,-518.01,0.00024931,7]
[340298237,1729008776762,-500.0,0.00024931,7]
[340298238,1729008776772,-500.0,0.00024931,7]
[340298239,1729008776782,-917.02,0.00024931,7]
[340298240,1729008776792,-500.0,0.00024931,7]
[340298241,1729008776801,-500.0,0.00024931,7]
[340298242,1729008776811,-500.0,0.00024931,7]
[340298243,1729008776824,-518.01,0.00024931,7]
[340298244,1729008776834,-500.0,0.00024931,7]
[340298245,1729008776844,-500.0,0.00024931,7]
[340298246,1729008776853,-917.02,0.00024931,7]
[340298247,1729008776863,-500.0,0.00024931,7]
[340298248,1729008776872,-500.0,0.00024931,7]
[340298249,1729008776882,-518.07671911,0.00024931,7]
[340298250,1729008776891,-500.0,0.00024931,7]
[340298251,1729008776900,-500.0,0.00024931,7]
[340298252,1729008776911,-500.0,0.00024931,7]
[340298253,1729008776923,-151.0,0.00024931,7]
[340298254,1729008776932,-500.0,0.00024931,7]
[340298255,1729008776942,-500.0,0.00024931,7]
[340298256,1729008776951,-500.0,0.00024931,7]
[340298257,1729008776962,-279.86309983,0.00024931,7]
[340298258,1729008776971,-917.02,0.00024931,7]
[340298259,1729008776981,-500.0,0.00024931,7]
[340298260,1729008776991,-500.0,0.00024931,7]
[340298261,1729008777002,-151.0,0.00024931,7]
[340298262,1729008777012,-500.0,0.00024931,7]
[340298263,1729008777021,-500.0,0.00024931,7]
[340298264,1729008777031,-500.0,0.00024931,7]
[340298265,1729008777041,-500.0,0.00024931,7]
[340298266,1729008777051,-151.0,0.00024931,7]
[340298267,1729008777061,-500.0,0.00024931,7]
[340298268,1729008777070,-500.0,0.00024931,7]
[340298269,1729008777080,-500.0,0.00024931,7]
[340298270,1729008777090,-917.02,0.00024931,7]
[340298271,1729008777100,-500.0,0.00024931,7]
[340298272,1729008777111,-500.0,0.00024931,7]
[340298273,1729008777121,-500.0,0.00024931,7]
[340298274,1729008777131,-504.86367827,0.00024931,7]
[340298275,1729008777141,-500.0,0.00024931,7]
[340298276,1729008777151,-500.0,0.00024931,7]
[340298277,1729008777161,-151.0,0.00024931,7]
[340298278,1729008777173,-917.02,0.00024931,7]
[340298279,1729008777183,-500.0,0.00024931,7]
[340298280,1729008777193,-500.0,0.00024931,7]
[340298281,1729008777203,-500.0,0.00024931,7]
[340298282,1729008777212,-500.0,0.00024931,7]
[340298283,1729008777222,-500.0,0.00024931,7]
[340298284,1729008777232,-917.02,0.00024931,7]
[340298285,1729008777242,-500.0,0.00024931,7]
[340298286,1729008777251,-500.0,0.00024931,7]
[340298287,1729008777261,-500.0,0.00024931,7]
[340298288,1729008777271,-500.0,0.00024931,7]
[340298289,1729008777280,-151.0,0.00024931,7]
[340298290,1729008777290,-500.0,0.00024931,7]
[340298291,1729008777300,-917.02,0.00024931,7]
[340298292,1729008777309,-500.0,0.00024931,7]
[340298293,1729008777319,-500.0,0.00024931,7]
[340298294,1729008777328,-500.0,0.00024931,7]
[340298295,1729008777337,-500.0,0.00024931,7]
[340298296,1729008777347,-501.31481685,0.00024931,7]
[340298297,1729008777357,-917.02,0.00024931,7]
[340298298,1729008777366,-500.0,0.00024931,7]
[340298299,1729008777376,-151.0,0.00024931,7]
[340298300,1729008777385,-500.0,0.00024931,7]
[340298301,1729008777395,-500.0,0.00024931,7]
[340298302,1729008777404,-500.0,0.00024931,7]
[340298303,1729008777417,-500.0,0.00024931,7]
[340298304,1729008777426,-917.02,0.00024931,7]
[340298305,1729008777436,-500.0,0.00024931,7]
[340298306,1729008777446,-151.0,0.00024931,7]
[340298307,1729008777455,-500.0,0.00024931,7]
[340298308,1729008777464,-500.0,0.00024931,7]
[340298309,1729008777474,-500.0,0.00024931,7]
[340298310,1729008777483,-500.0,0.00024931,7]
[340298311,1729008777493,-917.02,0.00024931,7]
[340298312,1729008777503,-151.0,0.00024931,7]
[340298313,1729008777512,-500.0,0.00024931,7]
[340298314,1729008777522,-500.0,0.00024931,7]
[340298315,1729008777531,-280.39287069,0.00024931,7]
[340298316,1729008777541,-500.0,0.00024931,7]
[340298317,1729008777551,-500.0,0.00024931,7]
[340298318,1729008777560,-917.02,0.00024931,7]
[340298319,1729008777570,-151.0,0.00024931,7]
[340298320,1729008777579,-500.0,0.00024931,7]
[340298321,1729008777589,-500.0,0.00024931,7]
[340298322,1729008777599,-255.76,0.00024931,7]
[340298323,1729008777608,-500.0,0.00024931,7]
[340298324,1729008777618,-500.0,0.00024931,7]
[340298325,1729008777628,-917.02,0.00024931,7]
[340298326,1729008777638,-500.0,0.00024931,7]
[340298327,1729008777914,-500.0,0.00024931,7]
[340298328,1729008777934,-500.0,0.00024931,7]
[340298329,1729008777944,-454.88,0.00024931,7]
[340298330,1729008777954,-500.0,0.00024931,7]
[340298331,1729008777964,-500.0,0.00024931,7]
[340298332,1729008777973,-917.02,0.00024931,7]
[340298333,1729008777983,-500.0,0.00024931,7]
[340298334,1729008777992,-500.0,0.00024931,7]
[340298335,1729008778001,-500.0,0.00024931,7]
[340298336,1729008778011,-500.0,0.00024931,7]
[340298337,1729008778021,-500.0,0.00024931,7]
[340298338,1729008778030,-917.02,0.00024931,7]
[340298339,1729008778039,-500.0,0.00024931,7]
[340298340,1729008778049,-500.0,0.00024931,7]
[340298341,1729008778058,-500.0,0.00024931,7]
[340298342,1729008778068,-500.0,0.00024931,7]
[340298343,1729008778078,-500.0,0.00024931,7]
[340298344,1729008778087,-917.02,0.00024931,7]
[340298345,1729008778096,-500.0,0.00024931,7]
[340298346,1729008778105,-151.0,0.00024931,7]
[340298347,1729008778115,-500.0,0.00024931,7]
[340298348,1729008778124,-500.0,0.00024931,7]
[340298349,1729008778134,-917.02,0.00024931,7]
[340298350,1729008778143,-500.0,0.00024931,7]
[340298351,1729008778152,-500.0,0.00024931,7]
[340298352,1729008778164,-500.0,0.00024931,7]
[340298353,1729008778173,-500.0,0.00024931,7]
[340298354,1729008778182,-153.46616,0.00024931,7]
[340298355,1729008778191,-500.0,0.00024931,7]
[340298356,1729008778200,-917.02,0.00024931,7]
[340298357,1729008778210,-500.0,0.00024931,7]
[340298358,1729008778219,-500.0,0.00024931,7]
[340298359,1729008778229,-500.0,0.00024931,7]
[340298360,1729008778238,-287.78,0.00024931,7]
[340298361,1729008778248,-500.0,0.00024931,7]
[340298362,1729008778257,-917.03,0.00024931,7]
[340298363,1729008778266,-500.0,0.00024931,7]
[340298364,1729008778276,-500.0,0.00024931,7]
[340298365,1729008778285,-500.0,0.00024931,7]
[340298366,1729008778294,-621.66,0.00024931,7]
[340298367,1729008778304,-500.0,0.00024931,7]
[340298368,1729008778313,-500.0,0.00024931,7]
[340298369,1729008778323,-500.0,0.00024931,7]
[340298370,1729008778332,-500.0,0.00024931,7]
[340298371,1729008778341,-500.0,0.00024931,7]
[340298372,1729008778351,-621.66,0.00024931,7]
[340298373,1729008778360,-500.0,0.00024931,7]
[340298374,1729008778370,-500.0,0.00024931,7]
[340298375,1729008778379,-500.0,0.00024931,7]
[340298376,1729008778388,-500.0,0.00024931,7]
[340298377,1729008778398,-500.0,0.00024931,7]
[340298378,1729008778407,-621.66,0.00024931,7]
[340298379,1729008778419,-500.0,0.00024931,7]
[340298380,1729008778428,-500.0,0.00024931,7]
[340298381,1729008778438,-500.0,0.00024931,7]
[340298382,1729008778447,-500.0,0.00024931,7]
[340298383,1729008778456,-500.0,0.00024931,7]
[340298384,1729008778466,-500.0,0.00024931,7]
[340298385,1729008778475,-621.66,0.00024931,7]
[340298386,1729008778485,-500.0,0.00024931,7]
[340298387,1729008778494,-500.0,0.00024931,7]
[340298388,1729008778503,-500.0,0.00024931,7]
[340298389,1729008778512,-500.0,0.00024931,7]
[340298390,1729008778522,-621.66,0.00024931,7]
[340298391,1729008778531,-500.0,0.00024931,7]
[340298392,1729008778541,-559.08269381,0.00024931,7]
[340298393,1729008778550,-207.4,0.00024931,7]
[340298394,1729008778559,-500.0,0.00024931,7]
[340298395,1729008778569,-500.0,0.00024931,7]
[340298396,1729008778578,-500.0,0.00024931,7]
[340298397,1729008778587,-621.66,0.00024931,7]
[340298398,1729008778597,-500.0,0.00024931,7]
[340298399,1729008778606,-500.0,0.00024931,7]
[340298400,1729008778615,-500.0,0.00024931,7]
[340298401,1729008778625,-500.0,0.00024931,7]
[340298402,1729008778635,-500.0,0.00024931,7]
[340298403,1729008778645,-621.66,0.00024931,7]
[340298404,1729008778654,-500.0,0.00024931,7]
[340298405,1729008778665,-500.0,0.00024931,7]
[340298406,1729008778674,-500.0,0.00024931,7]
[340298407,1729008778685,-500.0,0.00024931,7]
[340298408,1729008778694,-621.66,0.00024931,7]
[340298409,1729008778704,-500.0,0.00024931,7]
[340298410,1729008778715,-500.0,0.00024931,7]
[340298411,1729008778724,-500.0,0.00024931,7]
[340298412,1729008778735,-621.66,0.00024931,7]
[340298413,1729008778745,-500.0,0.00024931,7]
[340298414,1729008778755,-500.0,0.00024931,7]
[340298415,1729008778766,-287.52,0.00024931,7]
[340298416,1729008778775,-527.52882984,0.00024931,7]
[340298417,1729008778784,-621.66,0.00024931,7]
[340298418,1729008778794,-500.0,0.00024931,7]
[340298419,1729008778803,-500.0,0.00024931,7]
[340298420,1729008778812,-621.66,0.00024931,7]
[340298421,1729008778825,-500.0,0.00024931,7]
[340298422,1729008778835,-500.0,0.00024931,7]
[340298423,1729008778845,-621.66,0.00024931,7]
[340298424,1729008778856,-500.0,0.00024931,7]
[340298425,1729008778866,-500.0,0.00024931,7]
[340298426,1729008778875,-621.66,0.00024931,7]
[340298427,1729008778886,-500.0,0.00024931,7]
[340298428,1729008778895,-500.0,0.00024931,7]
[340298429,1729008778909,-431.62771783,0.00024931,7]
[340298430,1729008778921,-500.0,0.00024931,7]
[340298431,1729008778930,-621.66,0.00024931,7]
[340298432,1729008778939,-500.0,0.00024931,7]
[340298433,1729008778948,-621.66,0.00024931,7]
[340298434,1729008778958,-500.0,0.00024931,7]
[340298435,1729008778967,-621.66,0.00024931,7]
[340298436,1729008778976,-500.0,0.00024931,7]
[340298437,1729008778986,-621.66,0.00024931,7]
[340298438,1729008778996,-466.4,0.00024931,7]
[340298439,1729008779007,-621.66,0.00024931,7]
[340298440,1729008779017,-621.66,0.00024931,7]
[340298441,1729008779028,-621.66,0.00024931,7]
[340298442,1729008779039,-621.66,0.00024931,7]
[340298443,1729008779050,-621.66,0.00024931,7]
[340298444,1729008779060,-621.66,0.00024931,7]
[340298445,1729008779071,-621.76,0.00024931,7]
[340298446,1729008779081,-500.0,0.00024931,7]
[340298447,1729008779091,-500.0,0.00024931,7]
[340298448,1729008779101,-400.0,0.00024934,2]
[340298449,1729008779113,-150.0,0.00024947,2]
[340298450,1729008779123,-207.88253625,0.00024951,2]
[340298451,1729008779134,-156.21976284,0.00024953,2]
[340298452,1729008779144,-475.13694947,0.00024962,2]
[340298453,1729008779154,-150.0,0.00024965,2]
[340298454,1729008779165,-250.7698147,0.0002497,2]
[340298455,1729008779175,-150.0,0.0002497,2]
[340298456,1729008779185,-500.0,0.00024973,2]
[340298457,1729008779195,-150.0,0.0002498,2]
[340298458,1729008779204,-1129.5706714,0.00024983,2]
[340298459,1729008779214,-1206.5653479,0.00024983,2]
[340298460,1729008779223,-1283.5600244,0.00024983,2]
[340298461,1729008779233,-1360.5547009,0.00024983,2]
[340298462,1729008779243,-1437.5493775,0.00024983,2]
[340298463,1729008779252,-2208.303676,0.00024983,2]
[340298464,1729008779261,-2355.6146138,0.00024983,2]
[340298465,1729008779271,-2502.9255516,0.00024983,2]
[340298466,1729008779280,-2650.2364894,0.00024983,2]
[340298467,1729008779290,-2797.5474272,0.00024983,2]
[340298468,1729008779299,-150.0,0.00024984,2]
[340298469,1729008779309,-400.0,0.00024987,3]
[340298470,1729008779318,-150.0,0.00024992,2]
[340298471,1729008779327,-150.0,0.00024992,2]
[340298472,1729008779337,-269.96305052,0.00024996,2]
[340298473,1729008779346,-1500.0,0.00024996,2]
[340298474,1729008779355,-150.0,0.00024997,2]
[340298475,1729008779364,-8790.80697199,0.00024999,2]
[340298476,1729008779373,-50000.0,0.00025,9]
[340298477,1729008779382,-50000.0,0.00025,10]
[340298478,1729008779392,-50000.0,0.00025,13]
[340298479,1729008779401,-50000.0,0.00025,16]
[340298480,1729008779410,-50000.0,0.00025,8]
[340298481,1729008779421,-663648.15409549,0.00025,3]
[340298482,1729008784682,-839877.77233526,0.00025,3]
[340298483,1729008784745,1000.0,0.00040219,30]
[340298484,1729008784774,450.0,0.00040219,30]
[340298485,1729008784876,1000.0,0.00040225,120]
[340298486,1729008784968,450.0,0.00040225,120]
[340298487,1729008785038,1000.0,0.00040274,30]
[340298488,1729008785224,450.0,0.00040274,30]
[340298489,1729008785422,-500.0,0.00021164,2]
[340298490,1729008785432,-342.40632519,0.00024931,7]
[340298491,1729008785444,-157.59367481,0.00024931,7]
[340298492,1729008785453,-500.0,0.00024931,7]
[340298493,1729008785463,-450.65029529,0.00024931,7]
[340298494,1729008785479,-49.34970471,0.00024931,7]
[340298495,1729008785488,-500.0,0.00024931,7]
[340298496,1729008785497,-232.94186829,0.00024931,7]
[340298497,1729008785508,-267.05813171,0.00024931,7]
[340298498,1729008785518,-767.40186829,0.00025,3]
[340298499,1729008785529,-623.09648562,0.00025,3]
[340298500,1729008785544,-1891.89,0.00025,3]
[340298501,1729008785595,450.0,0.00040384,30]
[340298502,1729008785657,450.0,0.000405,120]
[340298503,1729008785724,450.0,0.00040548,30]
[340298504,1729008785807,450.0,0.00040822,30]
[340298505,1729008785860,-500.0,0.00024931,7]
[340298506,1729008785871,-16.37586192,0.00024931,7]
[340298507,1729008785882,-483.62413808,0.00024931,7]
[340298508,1729008785892,-500.0,0.00024931,7]
[340298509,1729008785902,-3.79294182,0.00024931,7]
[340298510,1729008785914,-496.20705818,0.00024931,7]
[340298511,1729008785926,-500.0,0.00024931,7]
[340298512,1729008785936,-500.0,0.00024931,7]
[340298513,1729008785946,-500.0,0.00024931,7]
[340298514,1729008785955,-500.0,0.00024931,7]
[340298515,1729008785965,-503.21631701,0.00024931,7]
[340298516,1729008785974,-236.33488427,0.00024931,7]
[340298517,1729008785983,-29279.86538721,0.00025,3]
[340298518,1729008785995,-3085.39798185,0.00025,3]
[340298519,1729008786034,-62001.77445859,0.00025,3]
[340298520,1729008786084,1000.0,0.00041,120]
[340298521,1729008786112,450.0,0.00041,34]
[340298522,1729008786124,-3230.70846362,0.00025,3]
[340298523,1729008786375,-1396.0,0.000234,2]
[340298524,1729008786385,-688.67082858,0.00024558,2]
[340298525,1729008786394,-10455.45258178,0.00024831,2]
[340298526,1729008786404,-1436985.23427569,0.00025,3]
[340298527,1729008786416,-1283.44162408,0.00025,3]
[340298528,1729008786443,-9002.72690644,0.00025,3]
[340298529,1729008786455,-260.95564108,0.00025,3]
[340298530,1729008786553,-87833.70051544,0.00025,3]
[340298531,1729008786564,-1488.93487,0.00025,3]
[340298532,1729008786654,-16156.16992797,0.00031817,60]
[340298533,1729008786680,-884.55724887,0.00031817,120]
[340298534,1729008786704,-165.0,0.00031817,120]
[340298535,1729008786728,-151.54178555,0.00031817,120]
[340298536,1729008786752,-169.26645327,0.00031817,30]
[340298537,1729008786775,-156.10469034,0.00031817,30]
[340298538,1729008786798,-5648.06705069,0.00031817,60]
[340298539,1729008786824,-206897.97409087,0.00031817,30]
[340298540,1729008786848,-30432.02634992,0.00031817,30]
[340298541,1729008786871,-8320.44106036,0.00031817,30]
[340298542,1729008786894,-66538.65803683,0.00031817,30]
[340298543,1729008786921,-5084.00348445,0.00031817,30]
[340298544,1729008786944,-100255.9634317,0.00031817,120]
[340298545,1729008786970,-150.0,0.00031817,30]
[340298546,1729008786997,-1066.23729079,0.00031817,60]
[340298547,1729008787022,-197.0,0.00031817,120]
[340298548,1729008787046,-575.41833223,0.00031817,120]
[340298549,1729008787070,-284.33142215,0.00031817,120]
[340298550,1729008787093,-1008.38483524,0.00031817,30]
[340298551,1729008787117,-432.54415579,0.00031817,90]
[340298552,1729008787141,-999.999998,0.00031817,120]
[340298553,1729008787164,-1279.36184159,0.00031817,120]
[340298554,1729008787189,-11673.37920452,0.00031817,30]
[340298555,1729008787215,-578.35364743,0.00031817,30]
[340298556,1729008787240,-456.80692879,0.00031817,30]
[340298557,1729008787264,-1581.3433263,0.00031817,120]
[340298558,1729008787288,-1200.0,0.00031817,120]
[340298559,1729008787311,-210.34775185,0.00031817,60]
[340298560,1729008787334,-1415.39322282,0.00031817,120]
[340298561,1729008787358,-1220.46909319,0.00031817,120]
[340298562,1729008787382,-335.31173677,0.00031817,120]
[340298563,1729008787405,-312.49673345,0.00031817,120]
[340298564,1729008787430,-185.18522552,0.00031817,30]
[340298565,1729008787453,-1326.95870812,0.00031817,120]
[340298566,1729008787476,-256.67873602,0.00031817,30]
[340298567,1729008787502,-533.63792442,0.00031817,120]
[340298568,1729008787525,-1232.2934078,0.00031817,120]
[340298569,1729008787548,-195.80103873,0.00031817,30]
[340298570,1729008787572,-185.13366713,0.00031817,30]
[340298571,1729008787595,-1852.32318834,0.00031817,30]
[340298572,1729008787618,-1414.14464937,0.00031817,30]
[340298573,1729008787642,-304.20461869,0.00031817,30]
[340298574,1729008787665,-791.43658188,0.00031817,120]
[340298575,1729008787692,-292.76997342,0.00031817,120]
[340298576,1729008787717,-389.34299007,0.00031817,120]
[340298577,1729008787741,-1667.29684768,0.00031817,30]
[340298578,1729008787765,-1628.92,0.00031817,30]
[340298579,1729008787790,-4337.26114371,0.00031817,120]
[340298580,1729008787814,-12066.42067586,0.00031817,120]
[340298581,1729008787842,-13716.28761936,0.00031817,120]
[340298582,1729008787866,-282.18224704,0.00031817,30]
[340298583,1729008787890,-2265.16852193,0.00031817,30]
[340298584,1729008787917,-1489239.59910318,0.00031817,120]
[340298585,1729008788529,155.64,0.000335,31]
[340298586,1729008788564,155.64,0.000335,31]
[340298587,1729008788593,155.64,0.000335,31]
[340298588,1729008788622,155.64,0.000335,31]
[340298589,1729008788650,155.64,0.000335,31]
[340298590,1729008788681,155.64,0.00036,31]
[340298591,1729008788709,155.64,0.00036,31]
[340298592,1729008788738,155.64,0.00036,31]
[340298593,1729008788766,155.64,0.00036,31]
[340298594,1729008788805,155.64,0.00036,31]
[340298595,1729008788842,155.64,0.00036,31]
[340298596,1729008788885,155.64,0.00036,31]
[340298597,1729008788915,155.64,0.00036,31]
[340298598,1729008788950,155.64,0.00036,31]
[340298599,1729008788982,155.64,0.00036,31]
[340298600,1729008789043,155.64,0.000386,31]
[340298601,1729008789074,155.64,0.000386,31]
[340298602,1729008789104,155.64,0.000386,31]
[340298603,1729008789133,155.64,0.000386,31]
[340298604,1729008789163,155.64,0.000386,31]
[340298605,1729008789272,155.64,0.000386,31]
[340298606,1729008789317,155.64,0.000386,31]
[340298607,1729008789347,155.64,0.000386,31]
[340298608,1729008789376,155.64,0.000386,31]
[340298609,1729008789405,155.64,0.000386,31]
[340298610,1729008789466,155.64,0.000411,31]
[340298611,1729008789495,155.64,0.000411,31]
[340298612,1729008789548,155.64,0.000411,31]
[340298613,1729008789595,155.64,0.000411,31]
[340298614,1729008789624,155.64,0.000411,31]
[340298615,1729008789655,155.64,0.000411,31]
[340298616,1729008789688,155.64,0.000411,31]
[340298617,1729008789717,155.64,0.000411,31]
[340298618,1729008789747,155.64,0.000411,31]
[340298619,1729008789777,155.64,0.000411,31]
[340298620,1729008789810,155.64,0.000436,36]
[340298621,1729008789851,155.64,0.000436,36]
[340298622,1729008789896,155.64,0.000436,36]
[340298623,1729008789933,155.64,0.000436,36]
[340298624,1729008789965,155.64,0.000436,36]
[340298625,1729008894339,550.0,0.0001,2]
[340298626,1729009254160,163.57,0.00010959,2]
[340298627,1729009405921,200.0,0.00010904,2]
[340298628,1729009508472,86919.86518071,0.00011,2]
[340298629,1729009530707,6614.55,0.000101,2]
[340298630,1729009530732,27765.64431445,0.000101,2]
[340298666,1729009831807,-931.75909125,0.00010873,2]
[340298668,1729009831818,-69.20324261,0.000109,2]
[340298669,1729009831832,-662.54834617,0.000109,2]
[340298670,1729009831866,-6238.5501324,0.000109,2]
[340298671,1729009831876,-164.17,0.00010959,2]
[340298672,1729009831886,-500.0,0.00010973,2]
[340298673,1729009831896,-300.0,0.00010998,2]
[340298674,1729009831906,-450.6235876,0.00010999,2]
[340298675,1729009831915,-318.45938104,0.00010999,2]
[340298676,1729009831925,-12952.73280399,0.00011,2]
[340298677,1729009831938,-1571.8,0.00011,2]
[340298678,1729009831955,-509.22801043,0.00011,2]
[340298679,1729009831968,-61937.37485479,0.00011,2]
[340298680,1729009832035,-500.0,0.00011,2]
[340298681,1729009832048,-13431.6098885,0.00011,2]
[340298682,1729009832060,-17804.33994674,0.00011,2]
[340298683,1729009832073,-4390.21581886,0.00011,2]
[340298684,1729009832088,-818.82444517,0.00011,2]
[340298685,1729009832101,-867.99467088,0.00011,2]
[340298686,1729009832117,-711.6,0.00011,2]
[340298687,1729009832130,-190670.17750897,0.00011,2]
[340298688,1729009832143,-166665.00000003,0.00011,2]
[340298689,1729009832155,-665.95,0.00011,2]
[340298690,1729009832177,-664.29491436,0.00011,2]
[340298691,1729009832191,-679.71,0.00011,2]
[340298692,1729009832205,-2019.02952842,0.00011,2]
[340298693,1729009832219,-3005.9920468,0.00011,2]
[340298694,1729009832231,-5905.61785603,0.00011,2]
[340298695,1729009832243,-5122.22480104,0.00011,2]
[340298696,1729009832256,-947.8638113,0.00011,2]
[340298697,1729009832268,-1366.00042613,0.00011,2]
[340298700,1729009837913,-11472.09108011,0.00011,2]
[340298701,1729009837924,-4498.0,0.00011,2]
[340298702,1729009837936,-459.01463883,0.00011,2]
[340298703,1729009837949,-985.12676992,0.00011,2]
[340298704,1729009837960,-562.98582958,0.00011,2]
[340298705,1729009837973,-794.86802,0.00011,2]
[340298706,1729009837985,-2146.17360397,0.00011,2]
[340298707,1729009837996,-135717.78159402,0.00011,2]
[340298708,1729009838009,-24977.3687205,0.00011,2]
[340298709,1729009838023,-6896.70624383,0.00011,2]
[340298710,1729009838036,-19099.21,0.00011,2]
[340298711,1729009838050,-6057.23386798,0.00011,2]
[340298712,1729009838064,-13271.56862149,0.00011,2]
[340298713,1729009838076,-24654.16122351,0.00011,2]
[340298714,1729009838089,-22243.24876,0.00011,2]
[340298715,1729009838189,-3353.94450525,0.00011,2]
[340298716,1729009838202,-1152.06794487,0.00011,2]
[340298717,1729009838214,-800.67916805,0.00011,2]